fUSD/lending_fUSD_20241122
["ID","MTS","AMOUNT","RATE_DAILY","PERIOD"]
[342977520,1732242647775,-500.0,0.00059496,120]
[342977521,1732242647785,-151.0,0.00059496,120]
[342977522,1732242647795,-500.0,0.00059496,120]
[342977523,1732242647804,-594.11206723,0.00059496,120]
[342977524,1732242647813,-500.0,0.00059496,120]
[342977525,1732242647822,-500.0,0.00059496,120]
[342977526,1732242647832,-532.71715215,0.00059496,120]
[342977527,1732242647841,-202.9285624,0.00059496,7]
[342977528,1732242647851,-500.0,0.00059496,120]
[342977529,1732242647860,-248.66981302,0.00059496,120]
[342977530,1732242647869,-151.0,0.00059496,120]
[342977531,1732242647878,-821.49,0.00059496,120]
[342977532,1732242647887,-500.0,0.00059496,120]
[342977533,1732242647896,-500.0,0.00059496,120]
[342977534,1732242647906,-331.75210858,0.00059496,120]
[342977535,1732242647915,-500.0,0.00059496,120]
[342977536,1732242647924,-5338.800337,0.00059496,120]
[342977537,1732242647933,-5338.800337,0.00059496,120]
[342977538,1732242647943,-500.0,0.00059496,120]
[342977539,1732242647952,-500.0,0.00059496,120]
[342977540,1732242647961,-500.0,0.00059496,120]
[342977541,1732242647970,-397.10757471,0.00059496,120]
[342977542,1732242647979,-467.2537,0.00059496,120]
[342977543,1732242647991,-500.0,0.00059496,120]
[342977544,1732242648000,-1078.73,0.00059496,120]
[342977545,1732242648009,-500.0,0.00059496,120]
[342977546,1732242648018,-3750.37,0.00059496,120]
[342977547,1732242648029,-500.0,0.00059496,120]
[342977548,1732242648039,-151.0,0.00059496,120]
[342977549,1732242648048,-500.0,0.00059496,120]
[342977550,1732242648058,-312.99258595,0.00059496,120]
[342977551,1732242648067,-151.0,0.00059496,120]
[342977552,1732242648077,-500.0,0.00059496,120]
[342977553,1732242648087,-500.0,0.00059496,120]
[342977554,1732242648098,-635.22344404,0.00059496,120]
[342977555,1732242648108,-500.0,0.00059496,120]
[342977556,1732242648118,-500.0,0.00059496,120]
[342977557,1732242648127,-599.35086805,0.00059496,120]
[342977558,1732242648137,-500.0,0.00059496,120]
[342977559,1732242648147,-500.0,0.00059496,120]
[342977560,1732242648157,-232.69156023,0.00059496,120]
[342977561,1732242648167,-500.0,0.00059496,120]
[342977562,1732242648176,-500.0,0.00059496,120]
[342977563,1732242648186,-379.33495048,0.00059496,120]
[342977564,1732242648196,-500.0,0.00059496,120]
[342977565,1732242648207,-470.80903846,0.00059496,120]
[342977566,1732242648217,-274.3326602,0.00059496,120]
[342977567,1732242648229,-500.0,0.00059497,120]
[342977568,1732242648239,-500.0,0.00059497,120]
[342977569,1732242648248,-500.0,0.00059497,120]
[342977570,1732242648258,-500.0,0.00059497,120]
[342977571,1732242648268,-500.0,0.00059497,120]
[342977572,1732242648279,-500.0,0.00059497,120]
[342977573,1732242648289,-500.0,0.00059497,120]
[342977574,1732242648301,-500.0,0.00059497,120]
[342977575,1732242648311,-308.71900336,0.00059497,120]
[342977576,1732242648321,-247.20783117,0.00059497,120]
[342977577,1732242648331,-500.0,0.00059497,120]
[342977578,1732242648341,-500.0,0.00059497,120]
[342977579,1732242648351,-500.0,0.00059497,120]
[342977580,1732242648361,-500.0,0.00059497,120]
[342977581,1732242648371,-500.0,0.00059497,120]
[342977582,1732242648380,-500.0,0.00059497,120]
[342977583,1732242648389,-580.07240898,0.00059497,120]
[342977584,1732242648398,-500.0,0.00059497,120]
[342977585,1732242648407,-500.0,0.00059497,120]
[342977586,1732242648416,-500.0,0.00059497,120]
[342977587,1732242648425,-500.0,0.00059497,120]
[342977588,1732242648434,-500.0,0.00059497,120]
[342977589,1732242648443,-500.0,0.00059497,120]
[342977590,1732242648453,-183.31421947,0.00059497,120]
[342977591,1732242648461,-1187.4196,0.00059497,30]
[342977592,1732242648471,-168.0,0.00059497,120]
[342977593,1732242648480,-500.0,0.00059497,120]
[342977594,1732242648489,-500.0,0.00059497,120]
[342977595,1732242648499,-500.0,0.00059497,120]
[342977596,1732242648508,-500.0,0.00059497,120]
[342977597,1732242648517,-500.0,0.00059497,120]
[342977598,1732242648528,-608.97115568,0.00059497,120]
[342977599,1732242648538,-500.0,0.00059497,120]
[342977600,1732242648547,-626.94,0.00059497,120]
[342977601,1732242648557,-500.0,0.00059497,120]
[342977602,1732242648566,-500.0,0.00059497,120]
[342977603,1732242648575,-500.0,0.00059497,120]
[342977604,1732242648585,-500.0,0.00059497,120]
[342977605,1732242648595,-500.0,0.00059497,120]
[342977606,1732242648605,-500.0,0.00059497,120]
[342977607,1732242648614,-500.0,0.00059497,120]
[342977608,1732242648623,-500.0,0.00059497,120]
[342977609,1732242648633,-534.81032153,0.00059497,120]
[342977610,1732242648642,-500.0,0.00059497,120]
[342977611,1732242648652,-205.76976393,0.00059497,120]
[342977612,1732242648662,-500.0,0.00059497,120]
[342977613,1732242648671,-500.0,0.00059497,120]
[342977614,1732242648680,-500.0,0.00059497,120]
[342977615,1732242648690,-500.0,0.00059497,120]
[342977616,1732242648700,-313.69206889,0.00059497,120]
[342977617,1732242648709,-500.0,0.00059497,120]
[342977618,1732242648719,-500.0,0.00059497,120]
[342977619,1732242648728,-500.0,0.00059497,120]
[342977620,1732242648738,-500.0,0.00059497,120]
[342977621,1732242648747,-500.0,0.00059497,120]
[342977622,1732242648756,-500.0,0.00059497,120]
[342977623,1732242648765,-500.0,0.00059497,120]
[342977624,1732242648774,-287.10387432,0.00059497,120]
[342977625,1732242648786,-500.0,0.00059497,120]
[342977626,1732242648796,-500.0,0.00059497,120]
[342977627,1732242648805,-500.0,0.00059497,120]
[342977628,1732242648815,-500.0,0.00059497,120]
[342977629,1732242648824,-428.43019366,0.00059497,120]
[342977630,1732242648833,-500.0,0.00059497,120]
[342977631,1732242648843,-500.0,0.00059497,20]
[342977632,1732242648853,-500.0,0.00059497,120]
[342977633,1732242648951,-500.0,0.00059497,120]
[342977634,1732242648960,-500.0,0.00059497,120]
[342977635,1732242648970,-500.0,0.00059497,120]
[342977636,1732242648979,-500.0,0.00059497,120]
[342977637,1732242648989,-500.0,0.00059497,120]
[342977638,1732242648999,-500.0,0.00059497,120]
[342977639,1732242649008,-500.0,0.00059497,120]
[342977640,1732242649017,-496.59983633,0.00059497,120]
[342977641,1732242649028,-500.0,0.00059497,120]
[342977642,1732242649037,-549.49712204,0.00059497,120]
[342977643,1732242649047,-453.4819809,0.00059497,120]
[342977644,1732242649058,-500.0,0.00059497,120]
[342977645,1732242649068,-500.0,0.00059497,120]
[342977646,1732242649078,-500.0,0.00059497,120]
[342977647,1732242649088,-257.90076255,0.00059497,120]
[342977648,1732242649098,-241.69580775,0.00059497,120]
[342977649,1732242649108,-500.0,0.00059497,120]
[342977650,1732242649118,-500.0,0.00059497,120]
[342977651,1732242649127,-500.0,0.00059497,120]
[342977652,1732242649137,-500.0,0.00059497,120]
[342977653,1732242649147,-366.90249802,0.00059497,120]
[342977654,1732242649158,-500.0,0.00059497,120]
[342977655,1732242649167,-553.47,0.00059497,120]
[342977656,1732242649177,-642.20278687,0.00059497,120]
[342977657,1732242649187,-500.0,0.00059497,120]
[342977658,1732242649197,-667.04,0.00059497,120]
[342977659,1732242649210,-1052.03,0.00059497,120]
[342977660,1732242649220,-1000.0,0.00059497,120]
[342977661,1732242649230,-500.0,0.00059497,120]
[342977662,1732242649240,-406.45194517,0.00059497,120]
[342977663,1732242649251,-500.0,0.00059497,120]
[342977664,1732242649261,-500.0,0.00059497,120]
[342977665,1732242649270,-500.0,0.00059497,120]
[342977666,1732242649283,-557.79,0.00059497,120]
[342977667,1732242649293,-355.79,0.00059497,120]
[342977668,1732242649303,-608.2921079,0.00059497,120]
[342977669,1732242649312,-500.0,0.00059497,120]
[342977670,1732242649322,-500.0,0.00059497,120]
[342977671,1732242649331,-159.00911454,0.00059497,120]
[342977672,1732242649341,-411.77,0.00059497,120]
[342977673,1732242649351,-426.95468922,0.00059497,120]
[342977674,1732242649360,-526.18,0.00059497,120]
[342977675,1732242649370,-500.0,0.00059497,120]
[342977676,1732242649380,-500.0,0.00059497,120]
[342977677,1732242649390,-500.0,0.00059497,21]
[342977678,1732242649399,-500.0,0.00059497,120]
[342977679,1732242649408,-500.0,0.00059497,120]
[342977680,1732242649418,-500.0,0.00059497,120]
[342977681,1732242649427,-500.0,0.00059497,120]
[342977682,1732242649436,-507.94015735,0.00059497,120]
[342977683,1732242649445,-500.0,0.00059497,120]
[342977684,1732242649454,-346.84734154,0.00059497,120]
[342977685,1732242649464,-500.0,0.00059497,7]
[342977686,1732242649473,-500.0,0.00059497,120]
[342977687,1732242649482,-500.0,0.00059497,120]
[342977688,1732242649492,-242.34073675,0.00059497,120]
[342977689,1732242649501,-500.0,0.00059497,120]
[342977690,1732242649510,-500.0,0.00059497,120]
[342977691,1732242649519,-500.0,0.00059497,120]
[342977692,1732242649529,-500.0,0.00059497,120]
[342977693,1732242649539,-1000.0,0.00059497,120]
[342977694,1732242649549,-500.0,0.00059497,120]
[342977695,1732242649559,-500.0,0.00059497,120]
[342977696,1732242649568,-500.0,0.00059497,120]
[342977697,1732242649582,-500.0,0.00059497,120]
[342977698,1732242649592,-540.3231455,0.00059497,120]
[342977699,1732242649602,-514.71,0.00059497,120]
[342977700,1732242649613,-500.0,0.00059497,120]
[342977701,1732242649622,-821.49,0.00059497,120]
[342977702,1732242649632,-155.50314488,0.00059497,120]
[342977703,1732242649641,-500.0,0.00059497,120]
[342977704,1732242649651,-500.0,0.00059497,120]
[342977705,1732242649661,-500.0,0.00059497,120]
[342977706,1732242649670,-500.0,0.00059497,120]
[342977707,1732242649680,-500.0,0.00059497,120]
[342977708,1732242649689,-500.0,0.00059497,120]
[342977709,1732242649698,-633.94127982,0.00059497,120]
[342977710,1732242649708,-500.0,0.00059497,120]
[342977711,1732242649717,-500.0,0.00059497,120]
[342977712,1732242649727,-500.0,0.00059497,120]
[342977713,1732242649736,-500.0,0.00059497,120]
[342977714,1732242649746,-528.99,0.00059497,120]
[342977715,1732242649755,-1775.04,0.00059497,120]
[342977716,1732242649765,-500.0,0.00059497,120]
[342977717,1732242649775,-254.92633904,0.00059497,120]
[342977718,1732242649786,-500.0,0.00059497,120]
[342977719,1732242649796,-500.0,0.00059497,120]
[342977720,1732242649805,-576.24,0.00059497,120]
[342977721,1732242649815,-500.0,0.00059497,120]
[342977722,1732242649824,-525.62109265,0.00059497,120]
[342977723,1732242649833,-500.0,0.00059497,120]
[342977724,1732242649843,-500.0,0.00059497,120]
[342977725,1732242649853,-500.0,0.00059497,120]
[342977726,1732242649862,-500.0,0.00059497,120]
[342977727,1732242649872,-500.0,0.00059497,120]
[342977728,1732242649882,-500.0,0.00059497,120]
[342977729,1732242649892,-500.0,0.00059497,120]
[342977730,1732242649901,-500.0,0.00059497,120]
[342977731,1732242649910,-500.0,0.00059497,120]
[342977732,1732242649919,-500.0,0.00059497,120]
[342977733,1732242649929,-500.0,0.00059497,120]
[342977734,1732242649939,-500.0,0.00059497,120]
[342977735,1732242649949,-500.0,0.00059497,120]
[342977736,1732242649959,-500.0,0.00059497,120]
[342977737,1732242649969,-500.0,0.00059497,120]
[342977738,1732242649979,-500.0,0.00059497,120]
[342977739,1732242649989,-500.0,0.00059497,120]
[342977740,1732242649999,-429.97179281,0.00059497,120]
[342977741,1732242650009,-359.72493464,0.00059497,120]
[342977742,1732242650018,-500.0,0.00059497,120]
[342977743,1732242650028,-500.0,0.00059497,120]
[342977744,1732242650041,-501.29683052,0.00059498,7]
[342977745,1732242650054,-500.0,0.00059498,120]
[342977746,1732242650064,-500.0,0.00059498,120]
[342977747,1732242650073,-500.59637483,0.00059498,120]
[342977748,1732242650083,-501.15766169,0.00059498,120]
[342977749,1732242650093,-500.95345715,0.00059498,120]
[342977750,1732242650103,-501.27312641,0.00059498,120]
[342977751,1732242650113,-500.77514139,0.00059498,120]
[342977752,1732242650123,-501.96797136,0.00059498,120]
[342977753,1732242650132,-500.0,0.00059498,120]
[342977754,1732242650142,-501.99271486,0.00059498,120]
[342977755,1732242650152,-600.13908684,0.00059498,120]
[342977756,1732242650162,-500.59941362,0.00059498,120]
[342977757,1732242650172,-502.26261113,0.00059498,120]
[342977758,1732242650182,-500.46463118,0.00059498,120]
[342977759,1732242650192,-500.78255918,0.00059498,120]
[342977760,1732242650203,-501.08525892,0.00059498,120]
[342977761,1732242650213,-413.72225888,0.00059498,120]
[342977762,1732242650226,-501.65137762,0.00059498,120]
[342977763,1732242650235,-500.0,0.00059498,120]
[342977764,1732242650244,-501.14795595,0.00059498,120]
[342977765,1732242650255,-500.61417428,0.00059498,120]
[342977766,1732242650265,-500.45288316,0.00059498,120]
[342977767,1732242650274,-501.54803187,0.00059498,120]
[342977768,1732242650286,-500.83014216,0.00059498,120]
[342977769,1732242650299,-500.71323875,0.00059498,2]
[342977770,1732242650309,-382.52635116,0.00059498,120]
[342977771,1732242650318,-501.28128258,0.00059498,120]
[342977772,1732242650328,-501.47220137,0.00059498,120]
[342977773,1732242650337,-500.0,0.00059498,120]
[342977774,1732242650347,-500.0,0.00059498,120]
[342977775,1732242650357,-501.26040476,0.00059498,120]
[342977776,1732242650367,-501.34664528,0.00059498,120]
[342977777,1732242650377,-502.13392165,0.00059498,120]
[342977778,1732242650387,-501.19868237,0.00059498,120]
[342977779,1732242650397,-500.75678008,0.00059498,120]
[342977780,1732242650407,-183.43213591,0.00059498,120]
[342977781,1732242650416,-450.26169308,0.00059498,120]
[342977782,1732242650426,-500.0,0.00059498,120]
[342977783,1732242650436,-500.0,0.00059498,120]
[342977784,1732242650445,-189.21437927,0.00059498,120]
[342977785,1732242650455,-319.1785094,0.00059498,120]
[342977786,1732242650464,-502.56911918,0.00059498,120]
[342977787,1732242650474,-500.69566946,0.00059498,120]
[342977788,1732242650484,-500.0,0.00059498,120]
[342977789,1732242650493,-500.96172754,0.00059498,120]
[342977790,1732242650502,-500.0,0.00059498,120]
[342977791,1732242650512,-450.00069126,0.00059498,60]
[342977792,1732242650521,-501.27241879,0.00059498,120]
[342977793,1732242650532,-500.0,0.00059498,120]
[342977794,1732242650541,-547.59035368,0.00059498,120]
[342977795,1732242650551,-502.33776625,0.00059498,120]
[342977796,1732242650560,-500.0,0.00059498,120]
[342977797,1732242650570,-592.77029454,0.00059498,120]
[342977798,1732242650580,-588.16290823,0.00059498,120]
[342977799,1732242650589,-500.0,0.00059498,120]
[342977800,1732242650599,-501.6950409,0.00059498,120]
[342977801,1732242650608,-500.0,0.00059498,120]
[342977802,1732242650618,-500.0,0.00059498,120]
[342977803,1732242650628,-535.49,0.00059498,120]
[342977804,1732242650638,-500.0,0.00059498,120]
[342977805,1732242650648,-502.16212101,0.00059498,120]
[342977806,1732242650658,-313.49201566,0.00059498,120]
[342977807,1732242650668,-500.0,0.00059498,120]
[342977808,1732242650678,-506.13288068,0.00059498,120]
[342977809,1732242650688,-501.13741343,0.00059498,120]
[342977810,1732242650697,-500.0,0.00059498,120]
[342977811,1732242650707,-500.0,0.00059498,120]
[342977812,1732242650717,-500.65932659,0.00059498,120]
[342977813,1732242650726,-508.90222889,0.00059498,120]
[342977814,1732242650736,-500.51931041,0.00059498,120]
[342977815,1732242650745,-181.57329223,0.00059498,120]
[342977816,1732242650842,-500.0,0.00059498,120]
[342977817,1732242650853,-502.51455407,0.00059498,120]
[342977818,1732242650863,-502.00071062,0.00059498,120]
[342977819,1732242650873,-500.0,0.00059498,120]
[342977820,1732242650883,-501.21157856,0.00059498,120]
[342977821,1732242650892,-500.0,0.00059498,120]
[342977822,1732242650902,-246.78298577,0.00059498,120]
[342977823,1732242650912,-500.0,0.00059498,120]
[342977824,1732242650921,-500.0,0.00059498,120]
[342977825,1732242650931,-598.96737138,0.00059498,120]
[342977826,1732242650940,-500.0,0.00059498,120]
[342977827,1732242650949,-503.40710077,0.00059498,120]
[342977828,1732242650958,-215.05517551,0.00059498,120]
[342977829,1732242650967,-500.0,0.00059498,120]
[342977830,1732242650976,-500.0,0.00059498,120]
[342977831,1732242650986,-500.0,0.00059498,120]
[342977832,1732242650996,-500.0,0.00059498,120]
[342977833,1732242651006,-504.72147205,0.00059498,120]
[342977834,1732242651016,-500.0,0.00059498,120]
[342977835,1732242651026,-500.0,0.00059498,120]
[342977836,1732242651039,-500.0,0.00059498,120]
[342977837,1732242651049,-500.0,0.00059498,120]
[342977838,1732242651058,-500.0,0.00059498,120]
[342977839,1732242651068,-504.57435653,0.00059498,120]
[342977840,1732242651077,-500.0,0.00059498,120]
[342977841,1732242651087,-519.7071678,0.00059498,120]
[342977842,1732242651096,-246.93821219,0.00059498,120]
[342977843,1732242651106,-519.7047561,0.00059498,120]
[342977844,1732242651116,-500.0,0.00059498,120]
[342977845,1732242651126,-501.55867677,0.00059498,120]
[342977846,1732242651136,-502.8649435,0.00059498,120]
[342977847,1732242651146,-500.0,0.00059498,120]
[342977848,1732242651156,-500.0,0.00059498,120]
[342977849,1732242651166,-500.0,0.00059498,120]
[342977850,1732242651177,-500.0,0.00059498,120]
[342977851,1732242651187,-503.79237639,0.00059498,120]
[342977852,1732242651197,-500.0,0.00059498,120]
[342977853,1732242651210,-1023.2390038,0.00059498,120]
[342977854,1732242651220,-502.13434444,0.00059498,120]
[342977855,1732242651229,-500.0,0.00059498,120]
[342977856,1732242651239,-503.77062018,0.00059498,120]
[342977857,1732242651250,-503.43957087,0.00059498,120]
[342977858,1732242651260,-500.0,0.00059498,120]
[342977859,1732242651270,-150.0,0.00059498,120]
[342977860,1732242651283,-500.0,0.00059498,120]
[342977861,1732242651293,-540.79497481,0.00059498,120]
[342977862,1732242651303,-510.67802185,0.00059498,120]
[342977863,1732242651314,-322.41283673,0.00059498,120]
[342977864,1732242651323,-500.0,0.00059498,120]
[342977865,1732242651333,-500.0,0.00059498,120]
[342977866,1732242651342,-500.0,0.00059498,120]
[342977867,1732242651352,-520.87648573,0.00059498,120]
[342977868,1732242651361,-500.0,0.00059498,120]
[342977869,1732242651371,-559.19348362,0.00059498,120]
[342977870,1732242651382,-500.0,0.00059498,120]
[342977871,1732242651392,-500.0,0.00059498,120]
[342977872,1732242651402,-500.0,0.00059498,120]
[342977873,1732242651411,-500.0,0.00059498,120]
[342977874,1732242651421,-504.2838324,0.00059498,120]
[342977875,1732242651431,-500.0,0.00059498,120]
[342977876,1732242651442,-500.0,0.00059498,120]
[342977877,1732242651451,-500.0,0.00059498,120]
[342977878,1732242651461,-527.52752318,0.00059498,120]
[342977879,1732242651470,-500.0,0.00059498,120]
[342977880,1732242651480,-500.0,0.00059498,120]
[342977881,1732242651490,-500.0,0.00059498,120]
[342977882,1732242651499,-500.0,0.00059498,120]
[342977883,1732242651508,-501.69832428,0.00059498,120]
[342977884,1732242651518,-500.0,0.00059498,120]
[342977885,1732242651527,-505.42492023,0.00059498,120]
[342977886,1732242651539,-502.51077714,0.00059498,120]
[342977887,1732242651549,-503.72562271,0.00059498,120]
[342977888,1732242651559,-503.66566076,0.00059498,120]
[342977889,1732242651568,-504.86147878,0.00059498,120]
[342977890,1732242651578,-500.0,0.00059498,120]
[342977891,1732242651588,-153.96702055,0.00059498,120]
[342977892,1732242651597,-370.2154464,0.00059498,120]
[342977893,1732242651606,-329.7508603,0.00059498,120]
[342977894,1732242651616,-485.60032981,0.00059498,120]
[342977895,1732242651626,-500.0,0.00059499,120]
[342977896,1732242651635,-500.0,0.00059499,120]
[342977897,1732242651645,-500.0,0.00059499,120]
[342977898,1732242651654,-359.20875831,0.00059499,120]
[342977899,1732242651664,-500.0,0.00059499,120]
[342977900,1732242651673,-500.0,0.00059499,120]
[342977901,1732242651683,-500.0,0.00059499,120]
[342977902,1732242651692,-500.0,0.00059499,120]
[342977903,1732242651701,-291.69822774,0.00059499,120]
[342977904,1732242651711,-500.0,0.00059499,120]
[342977905,1732242651721,-205.70676389,0.00059499,120]
[342977906,1732242651730,-500.0,0.00059499,120]
[342977907,1732242651739,-500.0,0.00059499,120]
[342977908,1732242651749,-500.0,0.00059499,120]
[342977909,1732242651759,-500.0,0.00059499,120]
[342977910,1732242651768,-446.01370124,0.00059499,120]
[342977911,1732242651777,-500.0,0.00059499,120]
[342977912,1732242651789,-500.0,0.00059499,120]
[342977913,1732242651799,-500.0,0.00059499,120]
[342977914,1732242651808,-500.0,0.00059499,120]
[342977915,1732242651818,-500.0,0.00059499,120]
[342977916,1732242651827,-500.0,0.00059499,120]
[342977917,1732242651837,-500.0,0.00059499,120]
[342977918,1732242651846,-500.0,0.00059499,2]
[342977919,1732242651856,-178.63578671,0.00059499,120]
[342977920,1732242651866,-500.0,0.00059499,120]
[342977921,1732242651875,-500.0,0.00059499,120]
[342977922,1732242651885,-290.42,0.00059499,120]
[342977923,1732242651894,-500.0,0.00059499,120]
[342977924,1732242651904,-500.0,0.00059499,120]
[342977925,1732242651913,-500.0,0.00059499,120]
[342977926,1732242651923,-500.0,0.00059499,120]
[342977927,1732242651932,-500.0,0.00059499,120]
[342977928,1732242651943,-618.58120959,0.00059499,120]
[342977929,1732242651952,-500.0,0.00059499,120]
[342977930,1732242651962,-500.0,0.00059499,120]
[342977931,1732242651972,-151.89,0.00059499,120]
[342977932,1732242651981,-500.0,0.00059499,120]
[342977933,1732242651991,-500.0,0.00059499,120]
[342977934,1732242652001,-168.0,0.00059499,120]
[342977935,1732242652011,-305.76316625,0.00059499,120]
[342977936,1732242652020,-500.0,0.00059499,120]
[342977937,1732242652029,-244.45229097,0.00059499,120]
[342977938,1732242652041,-575.16678252,0.00059499,120]
[342977939,1732242652051,-500.0,0.00059499,120]
[342977940,1732242652060,-500.0,0.00059499,120]
[342977941,1732242652069,-219.63646617,0.00059499,120]
[342977942,1732242652079,-500.0,0.00059499,120]
[342977943,1732242652088,-500.0,0.00059499,120]
[342977944,1732242652099,-500.0,0.00059499,120]
[342977945,1732242652108,-500.0,0.00059499,120]
[342977946,1732242652118,-500.0,0.00059499,120]
[342977947,1732242652127,-500.0,0.00059499,120]
[342977948,1732242652137,-215.74996349,0.00059499,120]
[342977949,1732242652147,-1000.0,0.00059499,30]
[342977950,1732242652156,-1000.0,0.00059499,30]
[342977951,1732242652166,-500.0,0.00059499,120]
[342977952,1732242652176,-500.0,0.00059499,120]
[342977953,1732242652186,-402.47719779,0.00059499,120]
[342977954,1732242652195,-184.95158003,0.00059499,120]
[342977955,1732242652207,-304.49678923,0.00059499,120]
[342977956,1732242652218,-313.39822175,0.00059499,120]
[342977957,1732242652227,-500.0,0.00059499,120]
[342977958,1732242652237,-267.89744198,0.00059499,120]
[342977959,1732242652247,-500.0,0.00059499,120]
[342977960,1732242652257,-500.0,0.00059499,120]
[342977961,1732242652268,-342.73937312,0.00059499,120]
[342977962,1732242652277,-500.0,0.00059499,120]
[342977963,1732242652290,-500.0,0.00059499,120]
[342977964,1732242652302,-444.94787783,0.00059499,120]
[342977965,1732242652312,-585.05994726,0.00059499,120]
[342977966,1732242652322,-151.0,0.00059499,120]
[342977967,1732242652332,-500.0,0.00059499,120]
[342977968,1732242652342,-175.5755633,0.00059499,120]
[342977969,1732242652351,-323.62292713,0.00059499,120]
[342977970,1732242652361,-500.0,0.00059499,120]
[342977971,1732242652370,-566.99196469,0.00059499,120]
[342977972,1732242652380,-391.65620352,0.00059499,120]
[342977973,1732242652390,-500.0,0.00059499,120]
[342977974,1732242652400,-500.0,0.00059499,120]
[342977975,1732242652409,-500.0,0.00059499,120]
[342977976,1732242652419,-500.0,0.00059499,120]
[342977977,1732242652429,-545.04464169,0.00059499,120]
[342977978,1732242652437,-151.0,0.00059499,120]
[342977979,1732242652447,-201.22300704,0.00059499,120]
[342977980,1732242652456,-363.40298126,0.00059499,120]
[342977981,1732242652465,-151.0,0.00059499,120]
[342977982,1732242652475,-408.64437506,0.00059499,120]
[342977983,1732242652484,-500.0,0.00059499,120]
[342977984,1732242652493,-396.153735,0.00059499,120]
[342977985,1732242652583,-624.42841035,0.00059499,120]
[342977986,1732242652593,-151.0,0.00059499,120]
[342977987,1732242652603,-667.04,0.00059499,120]
[342977988,1732242652613,-500.0,0.00059499,120]
[342977989,1732242652623,-638.72141547,0.00059499,120]
[342977990,1732242652634,-1000.0,0.00059499,120]
[342977991,1732242652644,-500.0,0.00059499,120]
[342977992,1732242652654,-258.161189,0.00059499,120]
[342977993,1732242652664,-500.0,0.00059499,120]
[342977994,1732242652674,-500.0,0.00059499,120]
[342977995,1732242652684,-500.0,0.00059499,120]
[342977996,1732242652694,-151.0,0.00059499,120]
[342977997,1732242652704,-500.0,0.00059499,120]
[342977998,1732242652714,-500.0,0.00059499,120]
[342977999,1732242652724,-151.0,0.00059499,120]
[342978000,1732242652734,-500.0,0.00059499,120]
[342978001,1732242652743,-557.79,0.00059499,120]
[342978002,1732242652753,-500.0,0.00059499,120]
[342978003,1732242652762,-151.0,0.00059499,120]
[342978004,1732242652772,-500.0,0.00059499,120]
[342978005,1732242652785,-500.0,0.00059499,120]
[342978006,1732242652795,-500.0,0.00059499,120]
[342978007,1732242652805,-500.0,0.00059499,120]
[342978008,1732242652815,-500.0,0.00059499,120]
[342978009,1732242652824,-526.18,0.00059499,120]
[342978010,1732242652834,-324.25394746,0.00059499,120]
[342978011,1732242652844,-500.0,0.00059499,120]
[342978012,1732242652855,-172.77415665,0.00059499,120]
[342978013,1732242652864,-500.0,0.00059499,120]
[342978014,1732242652873,-500.0,0.00059499,120]
[342978015,1732242652882,-441.25615411,0.00059499,120]
[342978016,1732242652891,-500.0,0.00059499,120]
[342978017,1732242652901,-625.93481899,0.00059499,120]
[342978018,1732242652911,-500.0,0.00059499,21]
[342978019,1732242652920,-500.0,0.00059499,120]